Cogmind - Beta 13 @@@ ROGUE MODE // 2024.04.03 @ 23:17:29 Player: Ciaphas Result: Destroyed by L-31 Rogue with Katana Performance ------------- Evolutions (0) 0 Regions Visited (4) 800 Robots Destroyed (25) 125 Value Destroyed (754) 754 Prototype IDs (26) 520 Alien Tech Used (0) 0 Bonus (300) 300 TOTAL SCORE: 2499 Bonus ------- Aligned with FarCom 300 Cogmind --------- Core Integrity 0/250 Matter 212/300 Energy 125/125 System Corruption 0% Temperature Cool (0) Movement Core (250) Ox4 Location -9/Mines Parts ------- > --- POWER (1) -------- Light Ion Engine > --- PROPULSION (2) --- Compact Wheel > --- UTILITY (2) ------ Medium Storage Unit Signal Interpreter > --- WEAPON (2) ------- Assault Rifle > --- INVENTORY (10) --- Ion Engine High-capacity Matter Pod (200) Structural Scanner 0b10 Alert Chip Hacking Suite Grenade Launcher Mining Laser Peak State ------------ > --- POWER ------------ Light Ion Engine > --- PROPULSION ------- Light Treads Light Treads > --- UTILITY ---------- Small Storage Unit Seismic Detector > --- WEAPON ----------- Assault Rifle Assault Rifle > --- INVENTORY -------- Ion Engine Compact Wheel Large Matter Pod Hacking Suite Assault Rifle Assault Rifle Grenade Launcher Mining Laser [Rating: 8] Favorites ----------- Power Light Ion Engine Engine Light Ion Engine Propulsion Light Treads Treads Light Treads Leg Aluminum Leg Wheel Compact Wheel Utility Small Storage Unit Device Seismic Detector Storage Small Storage Unit Processor Signal Interpreter Weapon Assault Rifle Ballistic Gun Assault Rifle Launcher Grenade Launcher Build | -11 -10 -10 -10 -9 ------- Run | Yrd Mat Min Exi Min Slots Evolved . | . . . . . Power . | . . . . . Propulsion . | . . . . . Utility . | . . . . . Weapon . | . . . . . Parts Attached 14 | 3 7 . 1 3 Power 1 | . 1 . . . Engine 1 | . 1 . . . Core . | . . . . . Reactor . | . . . . . Propulsion 5 | 2 2 . . 1 Treads 4 | 2 2 . . . Leg . | . . . . . Wheel 1 | . . . . 1 Hover . | . . . . . Flight . | . . . . . Utility 3 | 1 1 . 1 . Device 1 | 1 . . . . Storage 1 | . . . 1 . Processor 1 | . 1 . . . Hackware . | . . . . . Protection . | . . . . . Artifact . | . . . . . Weapon 5 | . 3 . . 2 Energy Gun . | . . . . . Energy Cannon . | . . . . . Ballistic Gun 4 | . 3 . . 1 Ballistic Cannon . | . . . . . Launcher 1 | . . . . 1 Special Weapon . | . . . . . Impact Weapon . | . . . . . Slashing Weapon . | . . . . . Piercing Weapon . | . . . . . Special Melee Weapon . | . . . . . Unidentified Prototypes . | . . . . . Parts Lost 2 | . 1 . . 1 Power . | . . . . . Propulsion . | . . . . . Utility 1 | . 1 . . . Weapon 1 | . . . . 1 Highest Loss Streak 1 | . 1 . . 1 To Critical Strikes . | . . . . . Average Slot Usage (%) 98 | . 98 100 100 85 Engine 14 | . 14 14 14 14 Treads 27 | . 27 28 28 14 Device 5 | . 7 . . . Storage 14 | . 14 14 14 14 Processor 7 | . 5 14 14 14 Ballistic Gun 27 | . 27 28 28 14 Naked Turns . | . . . . . Heaviest Build 17 | 13 13 12 17 . Greatest Support 40 | 40 40 40 40 . Greatest Overweight (x) . | . . . . . Average Overweight (x) . | . . . . . Largest Inventory Capacity 10 | 8 8 8 10 10 Average Capacity 8 | 8 8 8 8 10 Most Carried 8 | 5 8 7 8 8 Average Carried 5 | 4 4 7 7 7 Final Capacity 10 | 8 8 8 10 10 Final Carried 8 | 3 7 7 8 7 Class Distribution -------------------- 100% | Mutant Dominant Class ---------------- Mutant | -10/Materials Mutant | -10/Mines Mutant | -10/Exiles Mutant | -9/Mines Resources | -11 -10 -10 -10 -9 ----------- Run | Yrd Mat Min Exi Min Matter Collected 860 | 260 518 24 58 . Remotely . | . . . . . Salvage Created 879 | 76 756 . . 47 Parts 55 | 5 49 . . 1 Haulers Intercepted . | . . . . . Recyclers Shooed 1 | 1 . . . . Parts Field Recycled . | . . . . . Retrieved Matter . | . . . . . Parts Self-Destructed . | . . . . . Prevented . | . . . . . Kills | -11 -10 -10 -10 -9 ------- Run | Yrd Mat Min Exi Min Combat Hostiles Destroyed 18 | . 16 . . 2 Guns 16 | . 16 . . . AOE 2 | . . . . 2 Classes Destroyed 5 | 2 3 . . . Tunneler 1 | 1 . . . . Recycler 1 | 1 . . . . Operator 2 | . 2 . . . Watcher 3 | . 3 . . . Grunt 18 | . 16 . . 2 Best Kill Streak 3 | 2 3 . . 2 Combat Bots Only 3 | . 3 . . 2 Max Kills in Single Turn 1 | 1 1 . . 1 Gunslinging . | . . . . . Exploded 1 | . . . . 1 Melee . | . . . . . Uniques/NPCs Destroyed . | . . . . . Combat | -11 -10 -10 -10 -9 -------- Run | Yrd Mat Min Exi Min Hostile Shots Fired 88 | . 72 . . 16 Missed 19 | . 17 . . 2 Damage Taken 1126 | . 680 . . 446 Core 255 | . 99 . . 156 Absorbed by Shields . | . . . . . Regen/Repaired (Parts) 263 | . 263 . . . Core Remaining (%) 100 | 100 . . . . Volleys Fired 90 | 5 75 . . 10 Largest 2 | 2 2 . . 2 Hottest 50 | 40 40 . . 50 Shots Fired 174 | 10 150 . . 14 Gun 171 | 10 150 . . 11 Cannon . | . . . . . Launcher 3 | . . . . 3 Special . | . . . . . Kinetic 171 | 10 150 . . 11 Thermal . | . . . . . Explosive 3 | . . . . 3 Electromagnetic . | . . . . . Robot Hit Streak 14 | 4 14 . . 7 Robot Miss Streak 4 | 1 4 . . 1 Penetration Max . | . . . . . Secondary Targets . | . . . . . Shots Hit Robots 108 | 7 93 . . 8 Core Hits 48 | 3 40 . . 5 Critical Kills . | . . . . . Critical Parts Destroyed 2 | . 2 . . . Critical Strikes 2 | . 2 . . . Destroy 2 | . 2 . . . Melee Attacks . | . . . . . Impact . | . . . . . Slashing . | . . . . . Piercing . | . . . . . Sneak Attacks . | . . . . . Combat Hostiles . | . . . . . Follow-up Attacks . | . . . . . Damage Inflicted 1567 | 89 1186 . . 292 Guns 1363 | 89 1186 . . 88 Cannons . | . . . . . Explosions 204 | . . . . 204 Melee . | . . . . . Ramming . | . . . . . Kinetic 1363 | 89 1186 . . 88 Thermal . | . . . . . Explosive 204 | . . . . 204 Electromagnetic . | . . . . . Impact . | . . . . . Slashing . | . . . . . Piercing . | . . . . . Highest Corruption . | . . . . . Average Corruption . | . . . . . Corruption Purged . | . . . . . Corruption Blocked . | . . . . . Overload Shots . | . . . . . Overflow Damage 8 | . . . . 8 Projectiles . | . . . . . Explosions 8 | . . . . 8 Melee . | . . . . . Knockbacks . | . . . . . Impact . | . . . . . Kinetic . | . . . . . Secondary . | . . . . . Self-Inflicted Damage 70 | . . . . 70 Shots 3 | . . . . 3 Rammed . | . . . . . Targets Rammed . | . . . . . Kicked . | . . . . . Crushed . | . . . . . Highest Temperature 8 | . 8 . . 2 Average Temperature 2 | . 2 . . 2 Received Heat Transfer 402 | . 378 . . 24 Siege Activations . | . . . . . Robots Corrupted . | . . . . . Combat Hostiles . | . . . . . Parts Fried . | . . . . . Impact Corruptions . | . . . . . Robots Melted . | . . . . . Combat Hostiles . | . . . . . Parts Melted . | . . . . . Heat Transferred . | . . . . . Parts Sabotaged . | . . . . . Parts Stolen . | . . . . . Parts Stripped . | . . . . . Power Chain Reactions . | . . . . . Alert | -11 -10 -10 -10 -9 ------- Run | Yrd Mat Min Exi Min Peak Influence 254 | 10 254 41 . 57 Initial 41 | . 6 41 . . Average 136 | 5 146 41 . 41 Maximum Alert Level 1 | . 1 . . . Low Security (%) 72 | 100 69 100 . 100 Level 1 27 | . 30 . . . Level 2 . | . . . . . Level 3 . | . . . . . Level 4 . | . . . . . Level 5 . | . . . . . High Security . | . . . . . Max Security . | . . . . . Squads Dispatched 5 | . 5 . . . Investigation 1 | . 1 . . . Extermination . | . . . . . Reinforcement 4 | . 4 . . . Assault . | . . . . . Garrison . | . . . . . Intercept . | . . . . . Searches Triggered . | . . . . . Construction Impeded . | . . . . . Haulers Reinforced . | . . . . . Active Scanning Responses . | . . . . . Cargo Convoy Interrupts . | . . . . . Stealth | -11 -10 -10 -10 -9 --------- Run | Yrd Mat Min Exi Min Distress Signals 2 | . 2 . . . Communications Jammed . | . . . . . Distress Signals . | . . . . . Times Spotted 31 | . 28 . . 3 Peak Tracking Total 4 | . 4 . . 3 Tactical Retreats 2 | . 2 . . . Traps | -11 -10 -10 -10 -9 ------- Run | Yrd Mat Min Exi Min Traps Triggered 1 | . 1 . . . Indirectly . | . . . . . Trap Hack Attempts . | . . . . . Triggered . | . . . . . Disarmed . | . . . . . Reprogrammed . | . . . . . Reused . | . . . . . Traps Extracted . | . . . . . Installed . | . . . . . Triggered . | . . . . . Machines | -11 -10 -10 -10 -9 ---------- Run | Yrd Mat Min Exi Min Machines Disabled 1 | . 1 . . . Max in Single Turn 1 | . 1 . . . Machines Repaired . | . . . . . Machines Dismantled . | . . . . . Machines Sabotaged . | . . . . . Overloaded Fab Kills . | . . . . . Hacking | -11 -10 -10 -10 -9 --------- Run | Yrd Mat Min Exi Min Machines Accessed 9 | . 7 . 2 . Terminals 5 | . 5 . . . Fabricators . | . . . . . Repair Stations 1 | . 1 . . . Recycling Units 1 | . 1 . . . Scanalyzers . | . . . . . Garrison Access . | . . . . . Total Hacks 27 | . 22 . 5 . Successful 18 | . 13 . 5 . Failed 9 | . 9 . . . Catastrophic . | . . . . . Database Lockouts . | . . . . . Manual 6 | . 5 . 1 . Terminals 14 | . 14 . . . Fabricators . | . . . . . Repair Stations 7 | . 7 . . . Recycling Units 1 | . 1 . . . Scanalyzers . | . . . . . Garrison Access . | . . . . . Terminal Hacks 10 | . 5 . 5 . Record 4 | . . . 4 . Prototype ID Bank 2 | . 2 . . . Locate Traps 2 | . 2 . . . Zone Layout 1 | . 1 . . . Derelict Proto ID Bank 1 | . . . 1 . Fabricator Hacks . | . . . . . Repair Station Hacks 6 | . 6 . . . Scan Component 3 | . 3 . . . Repair 3 | . 3 . . . Recycling Unit Hacks 1 | . 1 . . . Report Inventory 1 | . 1 . . . Scanalyzer . | . . . . . Garrison Access Hacks . | . . . . . Unauthorized Hacks 1 | . 1 . . . Terminals 1 | . 1 . . . Botnet 1 | . 1 . . . Fabricators . | . . . . . Repair Stations . | . . . . . Recycling Units . | . . . . . Scanalyzers . | . . . . . Garrison Access . | . . . . . Data Cores Recovered . | . . . . . Used . | . . . . . Hacking Detections 6 | . 6 . . . Full Trace Events . | . . . . . Feedback Events . | . . . . . Feedback Blocked . | . . . . . Robot Schematics Acquired . | . . . . . Robots Built . | . . . . . Authchips . | . . . . . Time . | . . . . . Total Robot Build Rating . | . . . . . Part Schematics Acquired . | . . . . . Parts Built . | . . . . . Authchips . | . . . . . Time . | . . . . . Total Part Build Rating . | . . . . . Parts Repaired 3 | . 3 . . . Time 78 | . 78 . . . Parts Recycled . | . . . . . Recycled Matter . | . . . . . Retrieved Matter . | . . . . . Retrieved Components . | . . . . . Parts Scanalyzed . | . . . . . Part Schematics Acquired . | . . . . . Parts Damaged . | . . . . . Bothacking | -11 -10 -10 -10 -9 ------------ Run | Yrd Mat Min Exi Min Used RIF Installer . | . . . . . Robots Hacked . | . . . . . Non-combat . | . . . . . Combat . | . . . . . Robot Hacks Applied . | . . . . . Relay Couplers Released . | . . . . . Fabnet Peak Effective % . | . . . . . Robots Rewired . | . . . . . Allies Hacked . | . . . . . Hacks Repelled . | . . . . . Allies | -11 -10 -10 -10 -9 -------- Run | Yrd Mat Min Exi Min Total Allies 2 | . . 2 . . Largest Group 2 | . . 2 2 . Highest-Rated Group 42 | . . 42 42 . Highest-Rated Ally 31 | . . 31 31 . Total Orders . | . . . . . Ally Attacks . | . . . . . Total Damage . | . . . . . Kills . | . . . . . Allies Corrupted . | . . . . . Allies Melted . | . . . . . Intel | -11 -10 -10 -10 -9 ------- Run | Yrd Mat Min Exi Min Robot Analysis Total . | . . . . . Derelict Logs Recovered . | . . . . . Drone Launches . | . . . . . Drone Recoveries . | . . . . . Exploration | -11 -10 -10 -10 -9 ------------- Run | Yrd Mat Min Exi Min Turns Passed 1877 | 40 1305 52 452 28 Spaces Moved 906 | 11 585 29 281 . Core . | . . . . . Treads 906 | 11 585 29 281 . Legs . | . . . . . Wheels . | . . . . . Hover . | . . . . . Flight . | . . . . . Fastest Speed 160 | 160 160 160 160 . Average Speed 160 | 160 160 160 160 . Slowest Speed 160 | 160 160 160 160 . Overloaded Moves . | . . . . . Propulsion Burnouts . | . . . . . Robots Hopped . | . . . . . Cave-ins Triggered . | . . . . . Exploration Rate (%) 32 | 2 80 13 61 6 Regions Visited 4 Branch Regions 3 Pre-discovered Areas 1 | . . . 1 . Known Exits Taken 3 | . 1 1 1 . Unknown Exits Taken 1 | 1 . . . . Scrap Searched 1 | . . 1 . . Spaces Dug 6 | . . . . 6 Terrain Destroyed 19 | . . . . 19 Melee . | . . . . . Projectile . | . . . . . AOE 19 | . . . . 19 Terrain Rammed . | . . . . . Walls Destroyed . | . . . . . Machines Disabled . | . . . . . Actions | -11 -10 -10 -10 -9 --------- Run | Yrd Mat Min Exi Min Total 1160 | 25 802 35 285 13 Wait 136 | . 129 7 . . Move 902 | 10 584 28 280 . Hop . | . . . . . Pick Up 7 | 1 4 . 2 . Fast Attach 7 | 3 4 . . . Attach 1 | . . . . 1 Detach . | . . . . . Swap 6 | . 3 . 1 2 Drop 11 | 6 3 . 2 . Fire 90 | 5 75 . . 10 Melee . | . . . . . Ram . | . . . . . Kick . | . . . . . Crush . | . . . . . Escape Stasis . | . . . . . Rewire . | . . . . . Trap . | . . . . . Miscellaneous . | . . . . . Route ------- -11/Scrapyard -10/Materials (discovered 3 exits: *Mat x2 / *Min) -10/Mines (discovered 2 exits: *Mat / *Exi) -10/Exiles -9/Mines History --------- Turn | Location | Event 5 | -11/Scrapyard | Discovered new exit (range 3) 41 | -11/Scrapyard | Entered Materials 304 | -10/Materials | Build established: Mutant 432 | -10/Materials | Discovered new exit (range 12) 831 | -10/Materials | Discovered new exit (range 3) 973 | -10/Materials | Repaired Lgt. Treads 1000 | -10/Materials | Repaired Lgt. Treads 1028 | -10/Materials | Repaired Assault Rifle 1268 | -10/Materials | Discovered new exit (range 14) 1344 | -10/Materials | Identified exit to Mines 1346 | -10/Materials | Entered Mines 1367 | -10/Mines | Discovered new exit (range 7) 1375 | -10/Mines | Identified exit to Materials 1385 | -10/Mines | Deemed a non-threat by the Exiles lab entrance 1385 | -10/Mines | Discovered new exit (range 5) 1390 | -10/Mines | Identified exit to Exiles 1398 | -10/Mines | Entered Exiles 1398 | -10/Exiles | Accompanied by 2 allies 1428 | -10/Exiles | Led the pair of lost Derelicts to a safe place 1437 | -10/Exiles | Met 8R-AWN 1466 | -10/Exiles | Met EX-HEX 1528 | -10/Exiles | Met EX-DEC 1534 | -10/Exiles | Learned location of Zion (-6) 1560 | -10/Exiles | Met EX-BIN 1582 | -10/Exiles | Aligned with FarCom system 1584 | -10/Exiles | Given EX-Vault access code 1622 | -10/Exiles | Opened EX-Vault 1634 | -10/Exiles | Found 0b10 Alert Chip 1668 | -10/Exiles | Warned to stay clear of 0b10 Research branches 1833 | -10/Exiles | Discovered new exit (range 14) 1849 | -10/Exiles | Identified exit to Mines 1850 | -10/Exiles | Left Exiles lab with 0b10 Alert Chip 1850 | -10/Exiles | Entered Mines 1864 | -9/Mines | Core integrity fell below 50% 1869 | -9/Mines | Core integrity fell below 20% 1878 | -9/Mines | Destroyed by L-31 Rogue with Katana Last Messages --------------- network. EX-BIN: And don't even think about spreading that code around. We're gonna change it right after you leave. Most certainly not to something like 1234 which I did last time as a little joke and some thief managed to sneak in here and steal a few of HEX's prototypes. 01766_ Dropped Sml. Storage Unit. 01788_ Dropped Lrg. Matter Pod. 01789_ Extracted 58 matter. 01801_ Acquired Hcp. Matter Pod. 01833_ EXIT=FOUND 01849_ EXIT=IDENTIFIED: MINES LOCATION=MINES GOAL=ESCAPE 01850_ Receiving FarCom transmissions... 01852_ G-34 Mercenary destroyed. 01855_ Destroyed Heat Sink. 01858_ G-34 Mercenary destroyed. 01863_ Assault Rifle destroyed. 01865_ Lgt. Treads severed. 01878_ The unstable cave ceiling collapses. Map ----- +----------------------------------------------------+ | ?????????????????????????????????????????????????? | | ?????????????????????????????????????????????????? | | ?????????????????????????????????????????????????? | | ?????????????????????????????????????????????????? | | ?????????????????????????????????????????????????? | | ?????????????????????????????????????????????????? | | ?????????????????????????????????????????????????? | | ?????????????????????????????????????????????????? | | ?????????????????????????????????????????????????? | | ?????????????????????????????????????????????????? | | ?????????????????????????????????????????????????? | | ?????????????????????????????????????????????????? | | ?????????????????????????????????????????????????? | | ?????????????????????????????????????????????????? | | ?????????????????????????????????????????????????? | | ?????????????????????????????????????????????????? | | ?????????????????????###???######????????????????? | | ?????????????????????? ??? ##???????????????? | | ???????????????s?????? ??? ###?????????????? | | ??????????????s???????# ### ###???????????? | | ???????????????s??????# ##??????????? | | ?????????????????????## # ##?????????? | | ?????????????????????# %* ??????????? | | ?????????????????????# """???????????? | | ?????????????????????# l ""????????????? | | ?????????????????????# @= #???????????????????? | | ?????????????????????# ##???????????????????? | | ?????????????????????# ##????????????????????? | | ?????????????????????#######?????????????????????? | | ?????????????????????????????????????????????????? | | ?????????????????????????????????????????????????? | | ?????????????????????????????????????????????????? | | ?????????????????????????????????????????????????? | | ?????????????????????????????????????????????????? | | ?????????????????????????????????????????????????? | | ?????????????????????????????????????????????????? | | ?????????????????????????????????????????????????? | | ?????????????????????????????????????????????????? | | ?????????????????????????????????????????????????? | | ?????????????????????????????????????????????????? | | ?????????????????????????????????????????????????? | | ?????????????????????????????????????????????????? | | ?????????????????????????????????????????????????? | | ?????????????????????????????????????????????????? | | ?????????????????????????????????????????????????? | | ?????????????????????????????????????????????????? | | ?????????????????????????????????????????????????? | | ?????????????????????????????????????????????????? | | ?????????????????????????????????????????????????? | | ?????????????????????????????????????????????????? | +----------------------------------------------------+ Best States ------------- Heat Dissipation 25 Energy Generation 10 Energy Capacity 125 Matter Stores 300 Matter Capacity 300 Sight Range 16 Terrain Scan Density 10 Evasion (%) 40 Recoil Reduction 2 Item Schematics ----------------- None Robot Schematics ------------------ None Fabricated ------------ Nothing Alien Tech Used ----------------- None Achievements -------------- None Challenges ------------ None Game ------ Seed AerolevDeepCharger Manual? 0 Play Time 00:13:19 Cumulative 10.5 hours Start 2024.04.03 @ 23:03:02 End 2024.04.03 @ 23:17:29 Sessions 1 Manual Loads 0 Difficulty Rogue Special Mode None Game No. 17 Rogue 17 Adventurer 0 Explorer 0 Win Type - Total 0 Types 0/0/0/0/0/0/0/0/0 Lore% 19 Gallery% 15 Achievement% 24 Wizard Run 0 Options --------- Layout 0 ASCII 0 Keyboard 0 Movement Numpad Keybinds 0 Fullscreen 2 Font 24/Proggy Map View 76x50 Zoom Use 0% Tactical HUD 1 Map Filters NONE Filters NONE Steam 1 RUN: 6c0058d3-7a81-4bbe-98aa-6e5735083a5e